fUST/lending_fUST_20260703
["ID","MTS","AMOUNT","RATE_DAILY","PERIOD"]
[426931658,1783024238000,-186.0,0.00028334,2]
[426931662,1783024238000,-160.0,0.00028854,2]
[426931651,1783024238000,-284.0,0.00028,2]
[426931656,1783024238000,-446.0,0.00028334,2]
[426931654,1783024238000,-264.0,0.00028,2]
[426931664,1783024238000,-1858.155411,0.0002891,120]
[426931660,1783024238000,-500.0,0.000286,10]
[426931666,1783024238000,-192.222973,0.0002891,14]
[426931668,1783024238000,-500.0,0.00028951,2]
[426931665,1783024238000,-160.0,0.0002891,14]
[426931667,1783024238000,-224.445947,0.0002891,14]
[426931670,1783024238000,-398.77459749,0.00028951,2]
[426931672,1783024238000,-435.14186456,0.00028951,2]
[426931674,1783024238000,-500.0,0.00028952,2]
[426931675,1783024238000,-642.05936999,0.00028952,2]
[426931677,1783024238000,-3445.22263949,0.00028952,2]
[426931681,1783024238000,-29004.04743069,0.00028952,2]
[426931731,1783024238000,-500.0,0.00029046,2]
[426931769,1783024238000,-3460.0,0.00029052,2]
[426931729,1783024238000,-500.0,0.00029046,2]
[426931790,1783024238000,-3460.0,0.00029052,2]
[426931797,1783024238000,-3460.0,0.00029052,2]
[426931806,1783024238000,-3460.0,0.00029052,2]
[426931799,1783024238000,-618.57,0.00029052,2]
[426931814,1783024238000,-400.0,0.00029052,30]
[426931793,1783024238000,-3460.0,0.00029052,2]
[426931808,1783024238000,-3460.0,0.00029052,2]
[426931803,1783024238000,-3460.0,0.00029052,2]
[426931812,1783024238000,-425.2069168,0.00029052,30]
[426931795,1783024238000,-3460.0,0.00029052,2]
[426931810,1783024238000,-400.0,0.00029052,30]
[426931817,1783024238000,-400.0,0.00029052,30]
[426931825,1783024238000,-400.0,0.00029052,30]
[426931827,1783024238000,-400.0,0.00029052,30]
[426931828,1783024238000,-400.0,0.00029052,30]
[426931823,1783024238000,-400.0,0.00029052,30]
[426931819,1783024238000,-400.0,0.00029052,30]
[426931821,1783024238000,-400.0,0.00029052,30]
[426931830,1783024238000,-1184.86245138,0.00029052,60]
[426931832,1783024238000,-762.77291789,0.00029052,30]
[426931741,1783024238000,-507.5311984,0.00029052,7]
[426931786,1783024238000,-3460.0,0.00029052,2]
[426931788,1783024238000,-3460.0,0.00029052,2]
[426931801,1783024238000,-4065.02063618,0.00029052,2]
[426931782,1783024238000,-4120.83797524,0.00029052,2]
[426931739,1783024238000,-503.4118748,0.00029051,7]
[426931725,1783024238000,-500.0,0.00029046,2]
[426931743,1783024238000,-151.0,0.00029052,7]
[426931737,1783024238000,-198.01,0.00029051,7]
[426931735,1783024238000,-350.0,0.00029046,2]
[426931747,1783024238000,-381.1,0.00029052,2]
[426931748,1783024238000,-383.65,0.00029052,3]
[426931750,1783024238000,-183.7,0.00029052,2]
[426931753,1783024238000,-153.08,0.00029052,7]
[426931755,1783024238000,-214.32,0.00029052,30]
[426931721,1783024238000,-500.0,0.00029046,2]
[426931760,1783024238000,-3992.78080344,0.00029052,2]
[426931771,1783024238000,-3460.0,0.00029052,2]
[426931778,1783024238000,-3460.0,0.00029052,2]
[426931773,1783024238000,-3460.0,0.00029052,2]
[426931784,1783024238000,-3460.0,0.00029052,2]
[426931756,1783024238000,-755.83,0.00029052,2]
[426931765,1783024238000,-9437.03598029,0.00029052,2]
[426931758,1783024238000,-322177.80852054,0.00029052,2]
[426931780,1783024238000,-3460.0,0.00029052,2]
[426931763,1783024238000,-50381.54247001,0.00029052,2]
[426931767,1783024238000,-3811.01480482,0.00029052,2]
[426931875,1783024239000,-1422.95189072,0.00029052,2]
[426931853,1783024239000,-159.49196771,0.00029052,2]
[426931857,1783024239000,-753.05004345,0.00029052,2]
[426931861,1783024239000,-517.0267594,0.00029052,2]
[426931850,1783024239000,-649.05905477,0.00029052,2]
[426931852,1783024239000,-1387.09634394,0.00029052,2]
[426931848,1783024239000,-297.29683858,0.00029052,2]
[426931859,1783024239000,-160.47081179,0.00029052,2]
[426931844,1783024239000,-825.21156268,0.00029052,2]
[426931863,1783024239000,-592.15018742,0.00029052,2]
[426931842,1783024239000,-300.0,0.00029052,2]
[426931846,1783024239000,-333.11461021,0.00029052,2]
[426931836,1783024239000,-92984.78463489,0.00029052,2]
[426931838,1783024239000,-514.72,0.00029052,2]
[426931834,1783024239000,-194.79676346,0.00029052,30]
[426931840,1783024239000,-514.72,0.00029052,2]
[426931866,1783024239000,-1290.38672532,0.00029052,2]
[426931855,1783024239000,-715.57940736,0.00029052,2]
[426931864,1783024239000,-476.55618062,0.00029052,2]
[426931878,1783024239000,-663.32092588,0.00029052,2]
[426931908,1783024239000,-75465.83476696,0.00029052,30]
[426931893,1783024239000,-160.0,0.00029052,2]
[426931901,1783024239000,-162.80893526,0.00029052,2]
[426931890,1783024239000,-329.72838845,0.00029052,2]
[426931892,1783024239000,-1062.80841052,0.00029052,2]
[426931895,1783024239000,-1300.0,0.00029052,2]
[426931873,1783024239000,-1217.38993873,0.00029052,2]
[426931906,1783024239000,-200.47280197,0.00029052,2]
[426931888,1783024239000,-681.71086502,0.00029052,2]
[426931898,1783024239000,-602.97479293,0.00029052,2]
[426931911,1783024239000,-339.19721932,0.00029052,30]
[426931886,1783024239000,-263.37775093,0.00029052,2]
[426931882,1783024239000,-205.06161497,0.00029052,2]
[426931876,1783024239000,-3225.28846352,0.00029052,7]
[426931880,1783024239000,-1755.80863359,0.00029052,2]
[426931869,1783024239000,-332.44623174,0.00029052,2]
[426931871,1783024239000,-192.6540442,0.00029052,2]
[426931903,1783024239000,-296.18644081,0.00029052,2]
[426931884,1783024239000,-153.11144757,0.00029052,2]
[426932067,1783024240000,-6694.50989515,0.00029052,30]
[426932486,1783025375000,-164.994632,0.00018623,14]
[426932500,1783025386000,-164.994632,0.00018623,14]
[426932501,1783025397000,-107.67265062,0.00018623,14]
[426932527,1783025431000,-676.17536117,0.00019205,5]
[426932545,1783025433000,-3105.22927583,0.0002,5]
[426932544,1783025433000,-2515.85063574,0.00019205,5]
[426932546,1783025433000,-516.30724713,0.0002,5]
[426932547,1783025433000,-7938.65242393,0.0002,5]
[426932626,1783025438000,-3128.7095337,0.0002,5]
[426934043,1783025450000,-639.05072277,0.00026,30]
[426934041,1783025450000,-160.0,0.00025863,18]
[426934036,1783025450000,-164.2563359,0.0002,5]
[426934038,1783025450000,-7346.15218897,0.0002,5]
[426934196,1783026345000,-3000.0,0.000246,2]
[426934199,1783026345000,-3000.0,0.0002463,2]
[426934197,1783026345000,-3000.0,0.0002461,2]
[426934200,1783026345000,-3000.0,0.0002464,2]
[426934198,1783026345000,-3000.0,0.0002462,2]
[426934202,1783026345000,-285.82408916,0.00027397,30]
[426934204,1783026345000,-160.0,0.00027943,2]
[426934203,1783026345000,-177.609,0.00027711,17]
[426934205,1783026345000,-6863.09293719,0.00027998,2]
[426934201,1783026345000,-3583.333106,0.0002465,2]
[426934250,1783026632000,-197.0,0.00028,2]
[426934241,1783026632000,-160.0,0.00025863,18]
[426934245,1783026632000,-850.0,0.00028,2]
[426934246,1783026632000,-48.29372257,0.00028,2]
[426934243,1783026632000,-2119.86760039,0.00027998,2]
[426934248,1783026632000,-153.0,0.00028,2]
[426934247,1783026632000,-111.70627743,0.00028,2]
[426934251,1783026632000,-500.0,0.00028403,2]
[426934253,1783026632000,-500.0,0.00028403,2]
[426934249,1783026632000,-306.0,0.00028,2]
[426934255,1783026632000,-500.0,0.00028403,2]
[426934254,1783026632000,-500.0,0.00028403,2]
[426934258,1783026632000,-919.4,0.00028404,2]
[426934256,1783026632000,-543.62873846,0.00028403,2]
[426934257,1783026632000,-2216.0,0.00028404,2]
[426934259,1783026632000,-378.128,0.00028404,2]
[426934260,1783026632000,-446.0,0.00028404,2]
[426934262,1783026632000,-42.42806412,0.00028778,30]
[426934261,1783026632000,-186.0,0.00028404,2]
[426934252,1783026632000,-500.0,0.00028403,2]
[426934337,1783026638000,-215.81406802,0.00028951,2]
[426934334,1783026638000,-500.0,0.00028951,2]
[426934339,1783026638000,-500.0,0.00028951,2]
[426934341,1783026638000,-500.0,0.00028951,2]
[426934349,1783026638000,-500.0,0.00028951,2]
[426934345,1783026638000,-500.0,0.00028951,2]
[426934336,1783026638000,-500.0,0.00028951,2]
[426934347,1783026638000,-500.0,0.00028951,2]
[426934343,1783026638000,-500.0,0.00028951,2]
[426934325,1783026638000,-237.47761569,0.00028778,30]
[426934330,1783026638000,-500.0,0.00028951,2]
[426934328,1783026638000,-500.0,0.00028951,2]
[426934326,1783026638000,-238.114257,0.0002891,14]
[426934319,1783026638000,-151.5,0.00028778,30]
[426934323,1783026638000,-151.5,0.00028778,30]
[426934317,1783026638000,-151.5,0.00028778,30]
[426934315,1783026638000,-151.5,0.00028778,30]
[426934314,1783026638000,-109.07193588,0.00028778,30]
[426934332,1783026638000,-500.0,0.00028951,2]
[426934353,1783026638000,-262.76816525,0.00028951,2]
[426934351,1783026638000,-500.0,0.00028951,2]
[426934357,1783026638000,-568.84341584,0.00028952,2]
[426934359,1783026638000,-49056.90470943,0.00028952,2]
[426934394,1783026638000,-19886.60103971,0.00029052,30]
[426934396,1783026638000,-2813.32888145,0.00029052,30]
[426934392,1783026638000,-500.0,0.00029046,11]
[426934390,1783026638000,-752.21,0.00029042,3]
[426934386,1783026638000,-250.72,0.00029042,3]
[426934388,1783026638000,-814.24,0.00029042,10]
[426934384,1783026638000,-501.45,0.00029042,3]
[426934380,1783026638000,-500.0,0.00029042,3]
[426934382,1783026638000,-1002.9,0.00029042,3]
[426934354,1783026638000,-1266.95392661,0.00028952,2]
[426934376,1783026638000,-850.0,0.00029041,2]
[426934361,1783026638000,-1000.0,0.00028952,2]
[426934378,1783026638000,-170.0,0.00029041,2]
[426934375,1783026638000,-197.0,0.00029,2]
[426934365,1783026638000,-3345.93411152,0.00029,2]
[426934363,1783026638000,-271.08,0.00028999,2]
[426934373,1783026638000,-306.0,0.00029,2]
[426934369,1783026638000,-662.0,0.00029,5]
[426934371,1783026638000,-168.0,0.00029,2]
[426934367,1783026638000,-604.0,0.00029,2]
[426935360,1783026646000,-4801.74850507,0.00029052,30]
[426935359,1783026646000,-78143.94779041,0.00029052,30]
[426935421,1783027064000,5000.0,0.00029052,120]
[426935425,1783027555000,-161.98068202,0.000279,5]
[426935422,1783027555000,-200.09892084,0.00025956,2]
[426935424,1783027555000,-240.12660607,0.00027599,2]
[426935423,1783027555000,-200.09892084,0.00026475,7]
[426936007,1783027841000,-275.0,0.00028,2]
[426935997,1783027841000,-200.09892083,0.00027253,14]
[426935999,1783027841000,-297.2987889,0.00027599,2]
[426936003,1783027841000,-1244.03701798,0.000279,5]
[426936013,1783027841000,-446.0,0.00028456,2]
[426936009,1783027841000,-177.0,0.00028,2]
[426936005,1783027841000,-269.0,0.00028,2]
[426936011,1783027841000,-186.0,0.00028456,2]
[426936001,1783027841000,-339.43027441,0.00027599,2]
[426936017,1783027841000,-500.0,0.0002895,2]
[426936021,1783027841000,-500.0,0.0002895,2]
[426936035,1783027841000,-33.88149471,0.0002895,2]
[426936033,1783027841000,-500.0,0.0002895,2]
[426936031,1783027841000,-500.0,0.0002895,2]
[426936029,1783027841000,-500.0,0.0002895,2]
[426936023,1783027841000,-500.0,0.0002895,2]
[426936027,1783027841000,-178.70192007,0.0002895,2]
[426936025,1783027841000,-500.0,0.0002895,2]
[426936015,1783027841000,-500.0,0.0002895,2]
[426936019,1783027841000,-500.0,0.0002895,2]
[426936733,1783028734000,-881.61830643,0.00026796,2]
[426936737,1783028885000,1092.97945512,0.0001,2]
[426936759,1783028941000,-1599.10616005,0.0002,5]
[426936760,1783028942000,5000.0,0.00029052,120]
[426936769,1783028995000,-300.0,0.0002,5]
[426936770,1783029005000,-1599.10616005,0.0002,5]
[426936779,1783029032000,-213.29382352,0.00027397,30]
[426936776,1783029032000,-1740.90880195,0.0002,5]
[426936775,1783029032000,-2107.03106692,0.0002,5]
[426936778,1783029032000,-228.51087058,0.00026796,2]
[426936777,1783029032000,-325.08711468,0.00026427,2]
[426936782,1783029032000,-126.36189471,0.00028,2]
[426936781,1783029032000,-271.0,0.00028,2]
[426936783,1783029032000,-27.63810529,0.00028,2]
[426936784,1783029032000,-311.07389471,0.00028,2]
[426936780,1783029032000,-171.83749456,0.00027504,2]
[426936872,1783029039000,-679.79329444,0.00028,2]
[426937995,1783029054000,5000.0,0.00016,2]
[426938001,1783029183000,5000.0,0.00029052,120]
[426938002,1783029212000,300.2117469,0.00029052,120]
[426938009,1783029748000,-151.0,0.00023146,2]
[426938016,1783030156000,-459.96442738,0.000246,2]
[426938015,1783030156000,-151.0,0.00022452,2]
[426938092,1783030231000,-218.9148982,0.00027592,10]
[426938089,1783030231000,-291.99880618,0.00027397,30]
[426938087,1783030231000,-179.08629562,0.000246,2]
[426938085,1783030231000,-155.0,0.00023,7]
[426938333,1783030246000,-501.45,0.00027592,3]
[426938334,1783030246000,-250.72,0.00027592,3]
[426938335,1783030246000,-114.90635586,0.00027592,10]
[426938332,1783030246000,-1002.9,0.00027592,3]
[426938343,1783030543000,5000.0,0.00029047,120]
[426938344,1783030585000,3642.5814876,0.00029047,120]
[426938348,1783031155000,-341.74544071,0.00027503,2]
[426938345,1783031155000,-285.82408916,0.00027397,30]
[426938347,1783031155000,-218.93601807,0.00027503,2]
[426938349,1783031155000,-710.39,0.00027592,3]
[426938352,1783031155000,-532.81,0.00027592,3]
[426938346,1783031155000,-191.56901581,0.00027503,2]
[426938350,1783031155000,-355.19,0.00027592,3]
[426938353,1783031155000,-480.42,0.00027592,10]
[426938355,1783031155000,-257.06584981,0.00027598,2]
[426938354,1783031155000,-500.0,0.00027598,2]
[426938357,1783031155000,-195.70937397,0.00027598,2]
[426938356,1783031155000,-186.52243556,0.00027598,2]
[426938351,1783031155000,-177.6,0.00027592,3]
[426938403,1783031432000,-289.9678524,0.00027423,14]
[426938510,1783031438000,-110.22998928,0.00027423,14]
[426938512,1783031438000,-186.70287068,0.00027503,2]
[426938514,1783031438000,-336.06516722,0.00027503,2]
[426938524,1783031438000,-68.0659915,0.00027592,3]
[426938516,1783031438000,-597.44918618,0.00027503,2]
[426938518,1783031438000,-162.82668273,0.00027503,2]
[426938522,1783031438000,-769.75415632,0.00027503,2]
[426938571,1783031443000,-207.19,0.00027592,3]
[426938572,1783031443000,-151.0,0.00027599,7]
[426938573,1783031443000,-304.29062603,0.00027599,2]
[426938576,1783031443000,-178.989264,0.000276,7]
[426938575,1783031443000,-468.0,0.000276,3]
[426938574,1783031443000,-400.0,0.000276,2]
[426938570,1783031443000,-346.3240085,0.00027592,3]
[426938579,1783031443000,-1000.0,0.00027601,2]
[426938581,1783031443000,-1000.0,0.00027601,2]
[426938583,1783031443000,-1000.0,0.00027601,2]
[426938580,1783031443000,-1000.0,0.00027601,2]
[426938578,1783031443000,-177.609,0.00027601,17]
[426938584,1783031443000,-39876.28042133,0.00027602,2]
[426938577,1783031443000,-432.99776836,0.000276,2]
[426938582,1783031443000,-1000.0,0.00027601,2]
[426938589,1783031446000,-587.61123398,0.00027592,3]
[426938594,1783032074000,3524.12472247,0.00028,120]
[426938595,1783032167000,394.752496,0.0002868,120]
[426938596,1783032202000,197.376248,0.0002868,120]
[426938619,1783032241000,345.530639,0.0002868,120]
[426938620,1783032276000,172.76532,0.0002868,120]
[426938623,1783032330000,299.95,0.000137,2]
[426938624,1783032349000,-196.17582597,0.00026222,2]
[426938625,1783032524000,-1599.10616005,0.0002,5]
[426938626,1783032577000,-164.994632,0.0002,5]
[426938627,1783032588000,-1599.10616005,0.0002,5]
[426939173,1783032641000,-818.24179826,0.0002,5]
[426939169,1783032641000,-164.994632,0.0002,5]
[426939218,1783032642000,-1993.17609974,0.00027138,2]
[426939227,1783032642000,-1993.17609974,0.00027457,2]
[426939224,1783032642000,-500.0,0.00027418,13]
[426939216,1783032642000,-500.0,0.0002687,13]
[426939222,1783032642000,-2481.0863972,0.00027314,2]
[426939203,1783032642000,-589.16,0.00026597,2]
[426939199,1783032642000,-177.609,0.00026596,13]
[426939197,1783032642000,-500.0,0.00026596,13]
[426939207,1783032642000,-58461.2583731,0.00026598,2]
[426939205,1783032642000,-589.16,0.00026597,2]
[426939185,1783032642000,-622.68207613,0.00026499,2]
[426939208,1783032642000,-589.16,0.00026598,2]
[426939190,1783032642000,-1370.49402365,0.00026499,2]
[426939192,1783032642000,-160.0,0.00026587,2]
[426939201,1783032642000,-589.16,0.00026597,2]
[426939228,1783032642000,-160.0,0.00027555,2]
[426939177,1783032642000,-347.42555477,0.00024911,2]
[426939179,1783032642000,-11.41791318,0.00024911,2]
[426939175,1783032642000,-1056.93407559,0.0002,5]
[426939183,1783032642000,-295.00330705,0.00026222,2]
[426939181,1783032642000,-164.05478092,0.00026222,2]
[426939194,1783032642000,-244.2324901,0.00026587,2]
[426939214,1783032642000,-1993.17609974,0.00026818,2]
[426939234,1783032642000,-415.59,0.00027594,3]
[426939212,1783032642000,-228.51087058,0.00026716,2]
[426939277,1783032642000,-9003.46470296,0.00027604,2]
[426939275,1783032642000,-589.16,0.00027603,2]
[426939273,1783032642000,-589.16,0.00027603,2]
[426939271,1783032642000,-589.16,0.00027603,2]
[426939267,1783032642000,-589.16,0.00027603,2]
[426939269,1783032642000,-589.16,0.00027603,2]
[426939263,1783032642000,-589.16,0.00027603,2]
[426939265,1783032642000,-589.16,0.00027603,2]
[426939261,1783032642000,-589.16,0.00027603,2]
[426939210,1783032642000,-7370.2672335,0.00026599,2]
[426939236,1783032642000,-589.16,0.00027598,2]
[426939251,1783032642000,-589.16,0.00027603,2]
[426939238,1783032642000,-13509.96095654,0.00027599,2]
[426939243,1783032642000,-204.99970307,0.00027602,2]
[426939247,1783032642000,-333.16715663,0.00027602,2]
[426939240,1783032642000,-368.99946552,0.00027602,2]
[426939253,1783032642000,-589.16,0.00027603,2]
[426939245,1783032642000,-655.99904982,0.00027602,2]
[426939230,1783032642000,-160.69,0.00027593,2]
[426939232,1783032642000,-179.55,0.00027594,3]
[426939220,1783032642000,-500.0,0.00027144,13]
[426939249,1783032642000,-380.76246472,0.00027602,2]
[426939933,1783032649000,-2505.45426273,0.00027604,2]
[426939932,1783032649000,-207.8,0.00027594,3]
[426939936,1783033551000,-150.0,0.000246,2]
[426939937,1783033551000,-199.1538993,0.00026798,2]
[426939939,1783033551000,-4724.08867182,0.00027503,2]
[426939943,1783033551000,-295.18723345,0.00027594,3]
[426939941,1783033551000,-371.55,0.00027594,3]
[426939940,1783033551000,-500.0,0.00027588,2]
[426939942,1783033551000,-185.77,0.00027594,3]
[426939938,1783033551000,-197.94814603,0.00027397,30]
[426939958,1783033633000,-524.20244029,0.00027601,2]
[426939959,1783033633000,-372.10986137,0.00027601,2]
[426939957,1783033633000,-500.0,0.00027601,2]
[426939955,1783033633000,-500.0,0.00027601,2]
[426939956,1783033633000,-480.07675762,0.00027601,2]
[426939952,1783033633000,-500.0,0.00027601,2]
[426939954,1783033633000,-500.0,0.00027601,2]
[426939951,1783033633000,-500.0,0.00027601,2]
[426939950,1783033633000,-500.0,0.00027601,2]
[426939949,1783033633000,-500.0,0.00027601,2]
[426939947,1783033633000,-500.0,0.00027601,2]
[426939948,1783033633000,-530.92821699,0.00027601,2]
[426939946,1783033633000,-500.0,0.00027601,2]
[426939945,1783033633000,-262.15276655,0.00027594,3]
[426939944,1783033633000,-1023.97351683,0.00026223,2]
[426939961,1783033633000,-573.54219312,0.00027601,2]
[426939960,1783033633000,-573.54219312,0.00027601,2]
[426939953,1783033633000,-510.83172806,0.00027601,2]
[426939963,1783033633000,-573.54219312,0.00027601,2]
[426939962,1783033633000,-573.54219312,0.00027601,2]
[426939980,1783033633000,-462.3209248,0.00027601,2]
[426939979,1783033633000,-619.42556856,0.00027601,2]
[426939977,1783033633000,-573.54219312,0.00027601,2]
[426939978,1783033633000,-619.42556856,0.00027601,2]
[426939974,1783033633000,-573.54219312,0.00027601,2]
[426939975,1783033633000,-573.54219312,0.00027601,2]
[426939976,1783033633000,-573.54219312,0.00027601,2]
[426939973,1783033633000,-573.54219312,0.00027601,2]
[426939969,1783033633000,-573.54219312,0.00027601,2]
[426939972,1783033633000,-573.54219312,0.00027601,2]
[426939970,1783033633000,-573.54219312,0.00027601,2]
[426939966,1783033633000,-573.54219312,0.00027601,2]
[426939965,1783033633000,-573.54219312,0.00027601,2]
[426939968,1783033633000,-573.54219312,0.00027601,2]
[426939967,1783033633000,-573.54219312,0.00027601,2]
[426939964,1783033633000,-573.54219312,0.00027601,2]
[426939971,1783033633000,-573.54219312,0.00027601,2]
[426940004,1783033832000,-35.71420111,0.00026223,2]
[426940003,1783033832000,-558.63220866,0.00026223,2]
[426940008,1783033832000,-492.62057381,0.00027504,2]
[426940006,1783033832000,-398.63521998,0.00027504,2]
[426940007,1783033832000,-3045.89401289,0.00027504,2]
[426940005,1783033832000,-177.84473503,0.00027397,30]
[426940281,1783033843000,-353.12760575,0.00027603,2]
[426940277,1783033843000,-1.87239425,0.00027603,2]
[426940264,1783033843000,-185.77,0.00027594,3]
[426940267,1783033843000,-500.0,0.00027603,2]
[426940265,1783033843000,-240.91045299,0.00027603,2]
[426940261,1783033843000,-595.06300116,0.00027504,2]
[426940271,1783033843000,-500.0,0.00027603,2]
[426940269,1783033843000,-500.0,0.00027603,2]
[426940273,1783033843000,-498.12760575,0.00027603,2]
[426940292,1783033847000,-557.33,0.00027594,3]
[426940293,1783033847000,-500.0,0.00027602,2]
[426940294,1783033847000,-260.47690296,0.00027602,2]
[426940298,1783033847000,-500.0,0.00027602,2]
[426940295,1783033847000,-500.0,0.00027602,2]
[426940299,1783033847000,-220.5817183,0.00027602,2]
[426940296,1783033847000,-484.61527935,0.00027602,2]
[426940297,1783033847000,-15.38472065,0.00027602,2]
[426940301,1783034601000,243.297784,0.0002868,120]
[426940303,1783034674000,250.238321,0.0002868,120]
[426940308,1783034852000,-353.53846205,0.00027594,3]
[426940307,1783034852000,-233.49574301,0.00027397,2]
[426940306,1783034852000,-325.08711468,0.00023066,2]
[426940305,1783034852000,-157.0,0.00022,2]
[426940304,1783034852000,-200.09892083,0.00021588,14]
[426940378,1783035032000,-592.38484582,0.00027599,2]
[426940365,1783035032000,-592.38484582,0.00027599,2]
[426940359,1783035032000,-592.38484582,0.00027599,2]
[426940357,1783035032000,-592.38484582,0.00027599,2]
[426940347,1783035032000,-293.98891902,0.00027397,2]
[426940355,1783035032000,-592.38484582,0.00027599,2]
[426940353,1783035032000,-592.38484582,0.00027599,2]
[426940380,1783035032000,-592.38484582,0.00027599,2]
[426940349,1783035032000,-4679.95491604,0.00027521,2]
[426940345,1783035032000,-577.167932,0.00026602,7]
[426940351,1783035032000,-265.89808414,0.00027599,2]
[426940381,1783035032000,-592.38484582,0.00027599,2]
[426940363,1783035032000,-138.05031868,0.00027599,2]
[426940372,1783035032000,-442.23075085,0.00027599,2]
[426940366,1783035032000,-592.38484582,0.00027599,2]
[426940396,1783035032000,-577.81329336,0.00027599,2]
[426940394,1783035032000,-622.00408811,0.00027599,2]
[426940391,1783035032000,-622.00408811,0.00027599,2]
[426940393,1783035032000,-622.00408811,0.00027599,2]
[426940387,1783035032000,-592.38484582,0.00027599,2]
[426940389,1783035032000,-622.00408811,0.00027599,2]
[426940360,1783035032000,-454.33452714,0.00027599,2]
[426940383,1783035032000,-592.38484582,0.00027599,2]
[426940376,1783035032000,-592.38484582,0.00027599,2]
[426940385,1783035032000,-592.38484582,0.00027599,2]
[426940368,1783035032000,-592.38484582,0.00027599,2]
[426940374,1783035032000,-167.87019201,0.00027599,2]
[426940370,1783035032000,-592.38484582,0.00027599,2]
[426940454,1783035038000,-44.19079475,0.00027599,2]
[426940456,1783035038000,-622.00408811,0.00027599,2]
[426940458,1783035038000,-510.86551291,0.00027599,2]
[426940476,1783035039000,-622.00408811,0.00027599,2]
[426940474,1783035039000,-622.00408811,0.00027599,2]
[426940480,1783035039000,-709.08466045,0.00027599,2]
[426940482,1783035039000,-709.08466045,0.00027599,2]
[426940478,1783035039000,-622.00408811,0.00027599,2]
[426940491,1783035039000,-500.0,0.00027603,2]
[426940489,1783035039000,-431.56096367,0.00027603,2]
[426940484,1783035039000,-906.541263,0.000276,2]
[426940493,1783035039000,-500.0,0.00027603,2]
[426940472,1783035039000,-111.1385752,0.00027599,2]
[426940498,1783035039000,-449.41701486,0.00027603,2]
[426940496,1783035039000,-500.0,0.00027603,2]
[426940500,1783035039000,-188.48,0.00027603,17]
[426940502,1783035039000,-135372.12191728,0.00027604,2]
[426940486,1783035039000,-150.066372,0.000276,2]
[426940495,1783035039000,-500.0,0.00027603,2]
[426941115,1783035044000,-551.99426274,0.00027603,2]
[426941120,1783035044000,-354.54700124,0.00027603,2]
[426941471,1783035047000,-447.84170144,0.000278,2]
[426941468,1783035047000,-572.87607295,0.000278,2]
[426941464,1783035047000,-1565.56580481,0.00027604,2]
[426941467,1783035047000,-60880.12392706,0.00027604,2]
[426941423,1783035047000,-1227.78245187,0.00027604,2]
[426941421,1783035047000,-4367.54794695,0.00027603,2]
[426942565,1783035704000,156.0,0.00028,120]
[426942583,1783036054000,-202.928,0.00028345,2]
[426942580,1783036054000,-432.94,0.00028345,2]
[426942577,1783036054000,-219.0,0.00028,2]
[426942579,1783036054000,-151.0,0.000283,20]
[426942576,1783036054000,-386.0,0.00028,2]
[426942578,1783036054000,-408.0,0.00028,2]
[426942573,1783036054000,-1922.1396,0.000279,3]
[426942574,1783036054000,-1157.5504,0.000279,3]
[426942572,1783036054000,-248.4672,0.000279,3]
[426942581,1783036054000,-1845.0,0.00028345,2]
[426942571,1783036054000,-248.46726724,0.000279,3]
[426942570,1783036054000,-1380.99508373,0.00027603,2]
[426942567,1783036054000,-238.583966,0.0002748,7]
[426942569,1783036054000,-776.8097346,0.00027603,2]
[426942568,1783036054000,-189.78342169,0.00027603,2]
[426942575,1783036054000,-300.0,0.00028,14]
[426942582,1783036054000,-169.072,0.00028345,2]
[426942584,1783036054000,-446.0,0.00028345,2]